fUST/lending_fUST_20260602
["ID","MTS","AMOUNT","RATE_DAILY","PERIOD"]
[423763349,1780399841000,-500.0,0.00013698,2]
[423763347,1780399841000,-500.0,0.00013698,2]
[423763343,1780399841000,-500.0,0.00013698,2]
[423763341,1780399841000,-500.0,0.00013698,2]
[423763339,1780399841000,-500.0,0.00013698,2]
[423763366,1780399841000,-500.0,0.00013972,2]
[423763373,1780399841000,-500.0,0.00013972,2]
[423763385,1780399841000,-500.0,0.00013972,2]
[423763389,1780399841000,-500.0,0.00013972,2]
[423763390,1780399841000,-500.0,0.00013972,2]
[423763429,1780399841000,-458.76368155,0.00013972,2]
[423763425,1780399841000,-4.12436104,0.00013972,2]
[423763423,1780399841000,-500.0,0.00013972,2]
[423763427,1780399841000,-495.87563896,0.00013972,2]
[423763421,1780399841000,-500.0,0.00013972,2]
[423763419,1780399841000,-500.0,0.00013972,2]
[423763417,1780399841000,-500.0,0.00013972,2]
[423763415,1780399841000,-102.27708313,0.00013972,2]
[423763396,1780399841000,-500.0,0.00013972,2]
[423763394,1780399841000,-500.0,0.00013972,2]
[423763383,1780399841000,-500.0,0.00013972,2]
[423763375,1780399841000,-500.0,0.00013972,2]
[423763381,1780399841000,-371.15812326,0.00013972,2]
[423763377,1780399841000,-500.0,0.00013972,2]
[423763392,1780399841000,-500.0,0.00013972,2]
[423763379,1780399841000,-1076.5039,0.00013972,2]
[423763399,1780399841000,-397.72291687,0.00013972,2]
[423763527,1780399843000,-5000.0,0.00013425,2]
[423763528,1780399843000,-500.0,0.00013698,2]
[423763530,1780399843000,-500.0,0.00013972,2]
[423763532,1780399843000,-301.87067306,0.00013972,2]
[423763531,1780399843000,-500.0,0.00013972,2]
[423763529,1780399843000,-41.23631845,0.00013972,2]
[423763560,1780399846000,-500.0,0.00013972,2]
[423763555,1780399846000,-500.0,0.00013972,2]
[423763561,1780399846000,-307.2662933,0.00013972,2]
[423763559,1780399846000,-500.0,0.00013972,2]
[423763553,1780399846000,-500.0,0.00013972,2]
[423763566,1780399846000,-500.0,0.00013972,2]
[423763567,1780399846000,-500.0,0.00013972,2]
[423763554,1780399846000,-500.0,0.00013972,2]
[423763549,1780399846000,-198.87912082,0.00013972,2]
[423763551,1780399846000,-500.0,0.00013972,2]
[423763552,1780399846000,-500.0,0.00013972,2]
[423763550,1780399846000,-500.0,0.00013972,2]
[423763556,1780399846000,-590.1,0.00013972,2]
[423763564,1780399846000,-500.0,0.00013972,2]
[423763558,1780399846000,-390.086425,0.00013972,2]
[423763570,1780399846000,-661.01,0.00014246,2]
[423763557,1780399846000,-500.0,0.00013972,2]
[423763580,1780399846000,-500.0,0.00014246,2]
[423763562,1780399846000,-500.0,0.00013972,2]
[423763581,1780399846000,-535.93192213,0.00014246,2]
[423763576,1780399846000,-500.0,0.00014246,2]
[423763579,1780399846000,-500.0,0.00014246,2]
[423763575,1780399846000,-548.94,0.00014246,2]
[423763574,1780399846000,-500.0,0.00014246,2]
[423763578,1780399846000,-500.0,0.00014246,2]
[423763569,1780399846000,-159.15083661,0.00014246,2]
[423763573,1780399846000,-500.0,0.00014246,2]
[423763571,1780399846000,-385.38162764,0.00014246,2]
[423763572,1780399846000,-1076.5039,0.00014246,2]
[423763568,1780399846000,-500.0,0.00013972,2]
[423763577,1780399846000,-500.0,0.00014246,2]
[423763589,1780399847000,-500.0,0.00014246,2]
[423763603,1780399847000,-300.0,0.00014346,2]
[423763598,1780399847000,-222.73488102,0.00014346,2]
[423763599,1780399847000,-77.26511898,0.00014346,2]
[423763594,1780399847000,-300.0,0.00014346,2]
[423763592,1780399847000,-502.88526047,0.00014246,2]
[423763588,1780399847000,-500.0,0.00014246,2]
[423763585,1780399847000,-500.0,0.00014246,2]
[423763586,1780399847000,-500.0,0.00014246,2]
[423763591,1780399847000,-500.0,0.00014246,2]
[423763583,1780399847000,-500.0,0.00014246,2]
[423763587,1780399847000,-310.57807574,0.00014246,2]
[423763584,1780399847000,-500.0,0.00014246,2]
[423763582,1780399847000,-500.0,0.00014246,2]
[423763597,1780399847000,-300.0,0.00014346,2]
[423763590,1780399847000,-500.0,0.00014246,2]
[423763602,1780399847000,-300.0,0.00014346,2]
[423763595,1780399847000,-300.0,0.00014346,2]
[423763596,1780399847000,-300.0,0.00014346,2]
[423763593,1780399847000,-300.0,0.00014346,2]
[423763614,1780399847000,-310.98373985,0.0001452,2]
[423763613,1780399847000,-500.0,0.0001452,2]
[423763615,1780399847000,-500.0,0.0001452,2]
[423763609,1780399847000,-661.01,0.0001452,2]
[423763610,1780399847000,-500.0,0.0001452,2]
[423763608,1780399847000,-300.0,0.00014346,2]
[423763611,1780399847000,-500.0,0.0001452,2]
[423763618,1780399847000,-354.91222717,0.00014794,2]
[423763607,1780399847000,-300.0,0.00014346,2]
[423763605,1780399847000,-300.0,0.00014346,2]
[423763617,1780399847000,-600.0,0.00014632,2]
[423763616,1780399847000,-500.0,0.0001452,2]
[423763606,1780399847000,-300.0,0.00014346,2]
[423763600,1780399847000,-300.0,0.00014346,2]
[423763604,1780399847000,-300.0,0.00014346,2]
[423763612,1780399847000,-569.6853323,0.0001452,2]
[423763601,1780399847000,-300.0,0.00014346,2]
[423763642,1780400961000,-5000.0,0.00011509,2]
[423763644,1780400995000,-1049.31,0.00011509,2]
[423763645,1780401020000,-4950.01,0.00011394,2]
[423763701,1780401032000,-300.0,0.00012882,2]
[423763699,1780401032000,-300.0,0.00012882,2]
[423763705,1780401032000,-300.0,0.00012882,2]
[423763703,1780401032000,-300.0,0.00012882,2]
[423763696,1780401032000,-157.91199,0.0001263,2]
[423763689,1780401032000,-179.24543092,0.0001152,2]
[423763693,1780401032000,-378.0,0.00012224,2]
[423763691,1780401032000,-189.4949645,0.0001152,2]
[423763687,1780401032000,-516.76796848,0.00011509,2]
[423763685,1780401032000,-49.99,0.00011394,2]
[423763706,1780401032000,-300.0,0.00012882,2]
[423763695,1780401032000,-2773.8564183,0.00012225,2]
[423763708,1780401032000,-300.0,0.00012882,2]
[423763697,1780401032000,-300.0,0.00012882,2]
[423763721,1780401032000,-300.0,0.00012882,2]
[423763719,1780401032000,-300.0,0.00012882,2]
[423763723,1780401032000,-300.0,0.00012882,2]
[423763710,1780401032000,-300.0,0.00012882,2]
[423763725,1780401032000,-732.93520181,0.00013398,2]
[423763727,1780401032000,-161.9,0.00013497,2]
[423763715,1780401032000,-300.0,0.00012882,2]
[423763714,1780401032000,-300.0,0.00012882,2]
[423763712,1780401032000,-300.0,0.00012882,2]
[423763729,1780401032000,-312.46164814,0.00013497,2]
[423763730,1780401032000,-12537.94301459,0.00013498,2]
[423763732,1780401032000,-6953.1,0.00013498,2]
[423763734,1780401032000,-3611.8395338,0.00013498,2]
[423763717,1780401032000,-300.0,0.00012882,2]
[423763909,1780401038000,-151.0,0.000135,2]
[423763910,1780401038000,-151.0,0.000135,2]
[423763911,1780401038000,-151.0,0.000135,2]
[423763913,1780401038000,-151.0,0.000135,2]
[423763940,1780401039000,-500.0,0.00013698,2]
[423763938,1780401039000,-500.0,0.00013698,2]
[423763941,1780401039000,-500.0,0.00013698,2]
[423763939,1780401039000,-541.48,0.00013698,2]
[423763943,1780401039000,-500.0,0.00013698,2]
[423763936,1780401039000,-577.72,0.00013698,2]
[423763946,1780401039000,-500.0,0.00013698,2]
[423763945,1780401039000,-500.0,0.00013698,2]
[423763934,1780401039000,-487.0,0.00013598,2]
[423763935,1780401039000,-797.32,0.00013598,2]
[423763928,1780401039000,-151.0,0.000135,2]
[423763929,1780401039000,-151.0,0.000135,2]
[423763930,1780401039000,-151.0,0.000135,2]
[423763927,1780401039000,-151.0,0.000135,2]
[423763921,1780401039000,-151.0,0.000135,2]
[423763923,1780401039000,-151.0,0.000135,2]
[423763931,1780401039000,-151.0,0.000135,2]
[423763925,1780401039000,-151.0,0.000135,2]
[423763933,1780401039000,-487.0,0.00013598,2]
[423763932,1780401039000,-487.0,0.00013598,2]
[423763922,1780401039000,-151.0,0.000135,2]
[423763924,1780401039000,-151.0,0.000135,2]
[423763920,1780401039000,-151.0,0.000135,2]
[423763918,1780401039000,-151.0,0.000135,2]
[423763917,1780401039000,-151.0,0.000135,2]
[423763916,1780401039000,-151.0,0.000135,2]
[423763919,1780401039000,-151.0,0.000135,2]
[423763944,1780401039000,-298.34,0.00013698,2]
[423763926,1780401039000,-151.0,0.000135,2]
[423763937,1780401039000,-609.541147,0.00013698,2]
[423763973,1780401039000,-562.64967173,0.00014246,2]
[423763949,1780401039000,-516.72,0.00013698,2]
[423763942,1780401039000,-500.0,0.00013698,2]
[423763975,1780401039000,-9465.66914906,0.00014262,2]
[423763976,1780401039000,-2866.49295455,0.00014262,2]
[423763974,1780401039000,-500.0,0.00014246,2]
[423763972,1780401039000,-500.0,0.00014246,2]
[423763970,1780401039000,-500.0,0.00014246,2]
[423763971,1780401039000,-259.38775447,0.00014246,2]
[423763967,1780401039000,-500.0,0.00013972,2]
[423763965,1780401039000,-500.0,0.00013972,2]
[423763966,1780401039000,-500.0,0.00013972,2]
[423763963,1780401039000,-310.65696083,0.00013972,2]
[423763968,1780401039000,-500.0,0.00013972,2]
[423763962,1780401039000,-500.0,0.00013972,2]
[423763958,1780401039000,-500.0,0.00013972,2]
[423763961,1780401039000,-500.0,0.00013972,2]
[423763960,1780401039000,-500.0,0.00013972,2]
[423763947,1780401039000,-590.8,0.00013698,2]
[423763948,1780401039000,-500.0,0.00013698,2]
[423763950,1780401039000,-500.0,0.00013698,2]
[423763953,1780401039000,-500.0,0.00013698,2]
[423763964,1780401039000,-189.34303917,0.00013972,2]
[423763952,1780401039000,-500.0,0.00013698,2]
[423763956,1780401039000,-500.0,0.00013972,2]
[423763955,1780401039000,-577.72,0.00013972,2]
[423763951,1780401039000,-500.0,0.00013698,2]
[423763954,1780401039000,-600.0,0.00013869,2]
[423763959,1780401039000,-500.0,0.00013972,2]
[423763969,1780401039000,-577.72,0.00014246,2]
[423763957,1780401039000,-500.0,0.00013972,2]
[423763981,1780401040000,-359.38856549,0.00014262,2]
[423763982,1780401041000,-1842.40989433,0.00014262,2]
[423764001,1780401043000,-577.72,0.0001452,2]
[423763999,1780401043000,-30165.88294427,0.00014262,2]
[423764000,1780401043000,-253.23157701,0.00014353,2]
[423764004,1780401043000,-500.0,0.0001452,2]
[423764003,1780401043000,-201.38692114,0.0001452,2]
[423764005,1780401043000,-577.72,0.00014794,2]
[423764002,1780401043000,-500.0,0.0001452,2]
[423764036,1780401044000,-262.34422952,0.000162,2]
[423764035,1780401044000,-732.9352018,0.00016184,2]
[423764032,1780401044000,-262.34422952,0.000161,2]
[423764039,1780401044000,-577.72,0.00016438,2]
[423764043,1780401044000,-158.03,0.00016867,2]
[423764044,1780401044000,-152.21234161,0.00016873,2]
[423764042,1780401044000,-9004.16580376,0.000168,30]
[423764041,1780401044000,-864.0,0.00016782,2]
[423764040,1780401044000,-577.72,0.00016712,2]
[423764046,1780401044000,-152.1382999,0.00016873,2]
[423764047,1780401044000,-177.81455257,0.00016873,2]
[423764045,1780401044000,-191.78001579,0.00016873,2]
[423764059,1780401044000,-577.72,0.00016986,2]
[423764049,1780401044000,-341.70632927,0.00016873,2]
[423764048,1780401044000,-198.94268226,0.00016873,2]
[423764052,1780401044000,-181.57128752,0.00016873,2]
[423764051,1780401044000,-151.63582347,0.00016873,2]
[423764060,1780401044000,-150.28,0.00017074,2]
[423764053,1780401044000,-181.26204674,0.00016873,2]
[423764058,1780401044000,-150.19,0.00016929,2]
[423764057,1780401044000,-183.86089598,0.00016873,2]
[423764054,1780401044000,-236.54946788,0.00016873,2]
[423764056,1780401044000,-300.16027682,0.00016873,2]
[423764055,1780401044000,-353.53017721,0.00016873,2]
[423764061,1780401044000,-577.72,0.0001726,2]
[423764063,1780401044000,-150.56386439,0.00017376,2]
[423764050,1780401044000,-203.17193767,0.00016873,2]
[423764033,1780401044000,-164.12461024,0.000161,2]
[423764023,1780401044000,-164.12461024,0.000158,2]
[423764034,1780401044000,-577.72,0.00016164,2]
[423764011,1780401044000,-577.72,0.00015068,2]
[423764012,1780401044000,-440.0910741,0.00015068,2]
[423764009,1780401044000,-1033.45217376,0.00015,2]
[423764007,1780401044000,-500.0,0.00014794,2]
[423764010,1780401044000,-153.03246067,0.00015,2]
[423764008,1780401044000,-897.62985526,0.00014941,2]
[423764006,1780401044000,-319.09437747,0.00014794,2]
[423764013,1780401044000,-720.0,0.00015256,2]
[423764024,1780401044000,-577.72,0.0001589,2]
[423764064,1780401044000,-304.42468323,0.00017396,2]
[423764015,1780401044000,-577.72,0.00015342,2]
[423764019,1780401044000,-160.0,0.00015759,2]
[423764025,1780401044000,-164.89712873,0.000159,2]
[423764018,1780401044000,-284.47887214,0.0001565,2]
[423764016,1780401044000,-200.0,0.000155,2]
[423764014,1780401044000,-640.75991782,0.00015277,2]
[423764017,1780401044000,-577.72,0.00015616,2]
[423764020,1780401044000,-160.0,0.00015759,2]
[423764021,1780401044000,-164.89712873,0.000158,2]
[423764022,1780401044000,-262.34422952,0.000158,2]
[423764027,1780401044000,-164.12461024,0.000159,2]
[423764037,1780401044000,-932.54207686,0.00016355,2]
[423764038,1780401044000,-262.34422952,0.000164,2]
[423764026,1780401044000,-262.34422952,0.000159,2]
[423764028,1780401044000,-170.85316464,0.00016089,2]
[423764030,1780401044000,-150.08013841,0.00016089,2]
[423764029,1780401044000,-176.76508861,0.00016089,2]
[423764031,1780401044000,-164.89712873,0.000161,2]
[423764066,1780401044000,-161.46371667,0.00017396,2]
[423764078,1780401044000,-157.08592248,0.00017396,2]
[423764070,1780401044000,-512.55949391,0.00017396,2]
[423764096,1780401044000,-454.90747042,0.00017744,2]
[423764098,1780401044000,-543.78614022,0.00017744,2]
[423764102,1780401044000,-425.83668173,0.00017744,2]
[423764068,1780401044000,-355.62910515,0.00017396,2]
[423764101,1780401044000,-314.17184495,0.00017744,2]
[423764103,1780401044000,-551.58268794,0.00017744,2]
[423764104,1780401044000,-709.64840364,0.00017744,2]
[423764106,1780401044000,-446.3340773,0.00017744,2]
[423764099,1780401044000,-354.4145203,0.00017744,2]
[423764105,1780401044000,-184.25155826,0.00017744,2]
[423764109,1780401044000,-150.39,0.00017771,2]
[423764111,1780401044000,-165.05,0.00017835,2]
[423764113,1780401044000,-151.0,0.000179,2]
[423764116,1780401044000,-151.0,0.000181,2]
[423764112,1780401044000,-150.53,0.00017893,2]
[423764110,1780401044000,-577.72,0.00017808,2]
[423764118,1780401044000,-151.0,0.000184,2]
[423764119,1780401044000,-1000.0,0.0001846,2]
[423764117,1780401044000,-577.72,0.00018356,2]
[423764114,1780401044000,-577.72,0.00018082,2]
[423764115,1780401044000,-883.82544303,0.00018092,2]
[423764120,1780401044000,-151.0,0.000186,2]
[423764121,1780401044000,-1060.59053164,0.00018615,2]
[423764122,1780401044000,-577.72,0.0001863,2]
[423764123,1780401044000,-151.0,0.000188,2]
[423764124,1780401044000,-577.72,0.00018904,2]
[423764125,1780401044000,-200.0,0.00018955,2]
[423764108,1780401044000,-382.64541581,0.00017744,2]
[423764107,1780401044000,-253.9649369,0.00017744,2]
[423764100,1780401044000,-707.06035442,0.00017744,2]
[423764093,1780401044000,-533.44365772,0.00017744,2]
[423764069,1780401044000,-397.88536452,0.00017396,2]
[423764072,1780401044000,-303.27164694,0.00017396,2]
[423764065,1780401044000,-383.56003159,0.00017396,2]
[423764067,1780401044000,-304.2765998,0.00017396,2]
[423764062,1780401044000,-150.3,0.00017369,2]
[423764071,1780401044000,-406.34387533,0.00017396,2]
[423764074,1780401044000,-362.52409348,0.00017396,2]
[423764082,1780401044000,-577.72,0.00017534,2]
[423764097,1780401044000,-544.71386257,0.00017744,2]
[423764075,1780401044000,-473.09893576,0.00017396,2]
[423764076,1780401044000,-530.29526582,0.00017396,2]
[423764077,1780401044000,-450.24041523,0.00017396,2]
[423764080,1780401044000,-223.16703865,0.00017396,2]
[423764073,1780401044000,-363.14257505,0.00017396,2]
[423764079,1780401044000,-367.72179196,0.00017396,2]
[423764081,1780401044000,-191.32270791,0.00017396,2]
[423764092,1780401044000,-322.92743334,0.00017744,2]
[423764090,1780401044000,-205.9648586,0.00017744,2]
[423764089,1780401044000,-575.34004738,0.00017744,2]
[423764095,1780401044000,-596.82804678,0.00017744,2]
[423764086,1780401044000,-301.12772879,0.00017724,2]
[423764091,1780401044000,-161.85743192,0.00017744,2]
[423764087,1780401044000,-456.63702484,0.00017744,2]
[423764094,1780401044000,-683.41265855,0.00017744,2]
[423764088,1780401044000,-162.5981733,0.00017744,2]
[423764085,1780401044000,-151.0,0.000177,2]
[423764083,1780401044000,-232.27200502,0.0001764,2]
[423764084,1780401044000,-199.01879555,0.0001764,2]
[423764139,1780401045000,-152.0,0.00019282,7]
[423764135,1780401045000,-522.71005003,0.00019076,7]
[423764134,1780401045000,-151.0,0.00019,2]
[423764133,1780401045000,-1009.5040543,0.00019,2]
[423764130,1780401045000,-794.84687472,0.00018955,2]
[423764132,1780401045000,-732.9352018,0.0001897,2]
[423764129,1780401045000,-651.0,0.00018955,2]
[423764127,1780401045000,-651.0,0.00018955,2]
[423764126,1780401045000,-651.0,0.00018955,2]
[423764131,1780401045000,-651.0,0.00018955,2]
[423764136,1780401045000,-167.64,0.000191,2]
[423764128,1780401045000,-651.0,0.00018955,2]
[423764137,1780401045000,-577.72,0.00019178,2]
[423764142,1780401045000,-151.0,0.000194,2]
[423764147,1780401045000,-577.72,0.00019726,2]
[423764153,1780401045000,-3540.40687838,0.0001995,2]
[423764152,1780401045000,-1098.11333958,0.0001995,2]
[423764150,1780401045000,-942.35491879,0.000199,2]
[423764148,1780401045000,-300.0,0.00019841,2]
[423764149,1780401045000,-2404.84955459,0.000199,2]
[423764144,1780401045000,-577.72,0.00019452,2]
[423764146,1780401045000,-151.0,0.000197,2]
[423764143,1780401045000,-1337.4513012,0.000194,2]
[423764151,1780401045000,-127.60091421,0.000199,2]
[423764141,1780401045000,-285.65964965,0.000194,2]
[423764138,1780401045000,-151.0,0.000192,2]
[423764140,1780401045000,-1237.35562024,0.00019399,2]
[423764145,1780401045000,-151.0,0.000196,2]
[423764168,1780401046000,-7408.94175514,0.0001995,2]
[423764165,1780401046000,-300.0,0.00014546,2]
[423764166,1780401046000,-2967.49650068,0.0001995,2]
[423764167,1780401046000,-4616.79522179,0.0001995,2]
[423764163,1780401046000,-5000.0,0.00014119,2]
[423764164,1780401046000,-300.0,0.00014546,2]
[423764177,1780401446000,35438.54,0.00023202,60]
[423764261,1780402238000,-2873.40886433,0.00011637,2]
[423764287,1780402239000,-723.3519814,0.00011755,2]
[423764285,1780402239000,-2126.59113567,0.00011637,2]
[423764386,1780402246000,-749.50529325,0.00011755,2]
[423764385,1780402246000,-3527.14272535,0.00011755,2]
[423764387,1780402247000,-225.0,0.00011873,2]
[423764388,1780402247000,-300.0,0.00012235,2]
[423764392,1780402247000,-500.0,0.00013972,2]
[423764391,1780402247000,-500.0,0.00013698,2]
[423764389,1780402247000,-392.07976699,0.00012613,2]
[423764390,1780402247000,-600.0,0.00013665,2]
[423764394,1780402247000,-298.79283307,0.00014246,2]
[423764395,1780402247000,-720.0,0.00015032,2]
[423764396,1780402247000,-160.0,0.00015774,2]
[423764402,1780402247000,-367.38862302,0.000158,2]
[423764399,1780402247000,-500.0,0.00015799,2]
[423764397,1780402247000,-160.0,0.00015774,2]
[423764400,1780402247000,-494.46437272,0.00015799,2]
[423764398,1780402247000,-500.0,0.00015799,2]
[423764393,1780402247000,-328.39493976,0.00014246,2]
[423764401,1780402247000,-5.53562728,0.00015799,2]
[423764405,1780402357000,232.67,8.203e-05,2]
[423764412,1780402704000,-909.71,0.00013232,2]
[423764414,1780402729000,-790.171,0.00013232,2]
[423764415,1780402744000,-203.439,0.00013232,2]
[423764416,1780402774000,-702.258,0.00013232,2]
[423764419,1780402796000,-186.712,0.00013232,2]
[423764420,1780402810000,-208.333,0.00013232,2]
[423764424,1780402844000,-2270.11303178,0.000131,2]
[423764423,1780402844000,-2018.26696822,0.00012969,2]
[423764425,1780402934000,6218.36958488,7.6e-05,2]
[423764450,1780403162000,300.0,0.00023198,30]
[423764462,1780403279000,10000.0,0.00023198,30]
[423764485,1780403431000,-169.77097331,0.000131,7]
[423764484,1780403431000,-179.46457805,0.00013008,2]
[423764494,1780403431000,-169.77097332,0.00014672,7]
[423764495,1780403431000,-170.331681,0.00015165,2]
[423764486,1780403431000,-169.77097331,0.00013362,7]
[423764488,1780403431000,-169.77097331,0.00013755,7]
[423764483,1780403431000,-5000.0,0.00012711,2]
[423764491,1780403431000,-300.0,0.00014049,2]
[423764487,1780403431000,-155.38313422,0.00013409,2]
[423764492,1780403431000,-300.0,0.00014049,2]
[423764490,1780403431000,-179.8620905,0.00014049,2]
[423764493,1780403431000,-169.77097331,0.00014148,7]
[423764507,1780403431000,-205.80662316,0.000158,2]
[423764499,1780403431000,-160.0,0.00015771,2]
[423764497,1780403431000,-160.0,0.0001577,2]
[423764501,1780403431000,-218.86580448,0.00015799,2]
[423764505,1780403431000,-300.0,0.00015799,2]
[423764503,1780403431000,-81.13419552,0.00015799,2]
[423764489,1780403431000,-120.1379095,0.00014049,2]
[423764544,1780403438000,-500.0,0.00016864,2]
[423764539,1780403438000,-174.8726351,0.0001601,2]
[423764542,1780403438000,-990.00148702,0.000163,2]
[423764547,1780403438000,-500.0,0.00016864,2]
[423764548,1780403438000,-500.0,0.00016864,2]
[423764536,1780403438000,-151.0,0.000158,2]
[423764535,1780403438000,-186.71185195,0.000158,2]
[423764532,1780403438000,-416.80624084,0.000158,2]
[423764534,1780403438000,-208.33333333,0.000158,2]
[423764537,1780403438000,-887.63071626,0.000159,2]
[423764533,1780403438000,-203.43934333,0.000158,2]
[423764538,1780403438000,-102.37077076,0.000159,2]
[423764543,1780403438000,-990.00148702,0.000164,2]
[423764546,1780403438000,-500.0,0.00016864,2]
[423764541,1780403438000,-990.00148702,0.000161,2]
[423764540,1780403438000,-380.972748,0.0001601,2]
[423764557,1780403438000,-500.0,0.00017138,2]
[423764558,1780403438000,-30.7837972,0.00017138,2]
[423764555,1780403438000,-11531.9877489,0.00016865,2]
[423764552,1780403438000,-200.43192912,0.00016864,2]
[423764556,1780403438000,-611.9907016,0.00016865,2]
[423764553,1780403438000,-500.0,0.00016864,2]
[423764550,1780403438000,-500.0,0.00016864,2]
[423764551,1780403438000,-500.0,0.00016864,2]
[423764545,1780403438000,-298.79283307,0.00016864,2]
[423764549,1780403438000,-279.25755002,0.00016864,2]
[423764554,1780403438000,-500.0,0.00016864,2]
[423764569,1780403443000,-386.56,0.00017138,2]
[423764570,1780403443000,-82.6562028,0.00017138,2]
[423764572,1780403443000,-420.0,0.00017277,2]
[423764571,1780403443000,-290.17113322,0.00017138,2]
[423764573,1780403443000,-90.50266398,0.00017369,2]
[423764579,1780403443000,-110.74155127,0.00017412,2]
[423764575,1780403443000,-152.1382999,0.00017375,2]
[423764576,1780403443000,-203.17193766,0.00017375,2]
[423764578,1780403443000,-171.9890501,0.00017396,2]
[423764577,1780403443000,-234.45705029,0.00017396,2]
[423764574,1780403443000,-109.60418723,0.00017369,2]
[423764606,1780403446000,-394.17596815,0.00018129,2]
[423764592,1780403446000,-389.25844873,0.00017412,2]
[423764593,1780403446000,-404.17437272,0.00017412,2]
[423764595,1780403446000,-63.45551197,0.00017497,2]
[423764596,1780403446000,-309.58029018,0.00017497,2]
[423764597,1780403446000,-500.0,0.00017686,2]
[423764594,1780403446000,-358.56717855,0.00017497,2]
[423764601,1780403446000,-260.49592005,0.00017724,2]
[423764598,1780403446000,-406.34387533,0.00017717,2]
[423764605,1780403446000,-175.56453997,0.00018,2]
[423764604,1780403446000,-500.0,0.0001796,2]
[423764600,1780403446000,-304.27659979,0.00017723,2]
[423764603,1780403446000,-279.6896416,0.00017873,2]
[423764602,1780403446000,-251.14816907,0.00017768,2]
[423764599,1780403446000,-400.21370242,0.00017717,2]
[423764861,1780403465000,12945.23,0.00023197,30]
[423764872,1780403567000,7740.29,0.00023197,120]
[423764871,1780403567000,-500.0,0.00016864,2]
[423764901,1780404291000,12000.0,0.00023211,60]
[423764913,1780404599000,36000.0,0.00023211,30]
[423765043,1780404638000,-500.0,0.00016099,2]
[423765045,1780404638000,-500.0,0.00016099,2]
[423765035,1780404638000,-614.46288908,0.00016098,2]
[423765032,1780404638000,-500.0,0.00016098,2]
[423765041,1780404638000,-500.0,0.00016098,2]
[423765037,1780404638000,-500.0,0.00016098,2]
[423765051,1780404638000,-586.88233672,0.00016272,2]
[423765053,1780404638000,-500.0,0.00016299,2]
[423765055,1780404638000,-530.00302492,0.00016299,2]
[423765057,1780404638000,-2691.76240069,0.000163,2]
[423765047,1780404638000,-500.0,0.00016099,2]
[423765030,1780404638000,-609.913575,0.00016098,2]
[423765049,1780404638000,-2691.76240069,0.000161,2]
[423765039,1780404638000,-500.0,0.00016098,2]
[423765028,1780404638000,-500.0,0.00016098,2]
[423765014,1780404638000,-500.0,0.00016097,2]
[423765024,1780404638000,-500.0,0.00016098,2]
[423765026,1780404638000,-500.0,0.00016098,2]
[423765020,1780404638000,-500.0,0.00016098,2]
[423765016,1780404638000,-504.82266158,0.00016097,2]
[423765018,1780404638000,-500.0,0.00016098,2]
[423765011,1780404638000,-500.0,0.00016097,2]
[423764995,1780404638000,-5000.0,0.00014634,2]
[423764997,1780404638000,-5000.0,0.00014782,2]
[423764998,1780404638000,-300.0,0.00015536,2]
[423765006,1780404638000,-2691.76240069,0.000159,2]
[423765004,1780404638000,-2691.76240069,0.000158,2]
[423765002,1780404638000,-160.0,0.000158,2]
[423765000,1780404638000,-1650.0,0.00015543,2]